bitfinex/quotes_ETHUSD_20230403
["timestamp","ask_amount","ask_price","bid_price","bid_amount"]
[1680560487902,5.15789525,1813.6,1813.5,0.80942242]
[1680560488107,5.15989525,1813.6,1813.5,0.80942242]
[1680560488655,4.68947406,1813.6,1813.5,0.80942242]
[1680560488855,4.68347406,1813.6,1813.5,0.80942242]
[1680560489565,4.68347406,1813.6,1813.5,0.60942242]
[1680560490579,7.68347406,1813.6,1813.5,0.60942242]
[1680560490781,12.14247406,1813.6,1813.5,0.60942242]
[1680560490950,13.91094272,1813.6,1813.5,0.60942242]
[1680560491359,13.91094272,1813.6,1813.2,0.1]
[1680560491558,4.432,1813.4,1813.2,0.1]
[1680560491795,10.20238,1813.3,1812.7,0.19189138]
[1680560492101,4.42,1813.1,1812.4,0.03609159]
[1680560492298,4.42,1813.1,1812.5,2.76602218]
[1680560492299,1.93061,1812.9,1812.5,2.76602218]
[1680560492595,1.93661,1812.9,1812.5,2.76602218]
[1680560493104,1.93661,1812.9,1812.8,0.09989138]
[1680560495397,1.93661,1812.9,1812.6,0.70840087]
[1680560495568,1.93661,1812.9,1812.8,0.09989138]
[1680560495769,1.95898254,1812.9,1812.8,0.09989138]
[1680560495986,1.95898254,1812.9,1812.6,3.57431443]
[1680560496198,1.93081,1812.7,1812.6,0.80829225]
[1680560496385,1.93681,1812.7,1812.6,0.80829225]
[1680560497199,0.206,1812.8,1812.6,9.55114366]
[1680560497403,0.75163,1812.8,1812.7,2.76602218]
[1680560497567,0.47581,1812.8,1812.7,2.76602218]
[1680560497901,1.03344,1812.8,1812.7,2.76602218]
[1680560498075,1.02744,1812.8,1812.6,0.80694235]
[1680560498275,1.02744,1812.8,1812.6,3.57096453]
[1680560498488,1.02744,1812.8,1812.7,0.70799779]
[1680560499500,1.02744,1812.8,1812.6,2.86591356]
[1680560499700,1.02744,1812.8,1812.7,2.76602218]
[1680560500160,1.0415603,1812.8,1812.7,2.76602218]
[1680560500361,1.0415603,1812.8,1812.7,3.46687711]
[1680560502709,3.7415603,1812.8,1812.7,3.46687711]
[1680560503493,3.7415603,1812.8,1812.7,0.70085493]
[1680560504278,3.76393284,1812.8,1812.7,0.70085493]
[1680560504482,3.76393284,1812.8,1812.6,0.09989138]
[1680560504888,4.33978565,1812.8,1812.6,0.09989138]
[1680560505469,4.33978565,1812.8,1812.5,0.09989138]
[1680560505667,4.33978565,1812.8,1812.6,0.09989138]
[1680560506286,3.76393284,1812.8,1812.4,0.03609159]
[1680560506477,3.76393284,1812.8,1812.7,0.68985631]
[1680560506823,3.76993284,1812.8,1812.7,0.78974769]
[1680560507695,3.7415603,1812.8,1812.7,3.55576987]
[1680560507877,3.7475603,1812.8,1812.7,3.55576987]
[1680560508520,2.9141203,1812.8,1812.7,10.80754686]
[1680560508684,0.2,1813.2,1813.1,0.09989138]
[1680560508889,0.2,1813.8,1813.1,0.09989138]
[1680560508890,0.2,1813.8,1813.7,5.99589138]
[1680560509103,0.2,1813.8,1813.7,9.76391356]
[1680560509419,0.2,1813.8,1813.7,11.85030492]
[1680560509578,0.2,1813.8,1813.7,12.67732492]
[1680560509778,0.2,1813.8,1813.7,10.85030492]
[1680560510020,0.2,1813.8,1813.7,9.74030492]
[1680560510224,0.47566,1813.8,1813.7,9.74030492]
[1680560510424,0.27566,1813.8,1813.7,3.84430492]
[1680560510740,0.27564,1813.9,1813.8,0.09989138]
[1680560511209,0.84930254,1813.9,1813.8,0.09989138]
[1680560511625,1.04449179,1813.9,1813.6,0.09989138]
[1680560511942,1.04449179,1813.9,1813.8,0.09989138]
[1680560512321,1.04449179,1813.9,1813.0,1.112]
[1680560512484,0.82702,1813.7,1813.6,0.09989138]
[1680560512685,0.27567,1813.7,1813.6,0.09989138]
[1680560512921,0.82702,1813.7,1813.6,0.09989138]
[1680560513632,0.82702,1813.7,1813.6,0.78705739]
[1680560516315,1.020593,1813.7,1813.6,0.68716601]
[1680560516513,1.426593,1813.7,1813.6,0.68716601]
[1680560516829,10.922593,1813.7,1813.1,0.002]
[1680560517026,1.93019,1813.3,1812.5,1.11]
[1680560517223,1.93019,1813.3,1812.4,0.04209159]
[1680560517456,1.93019,1813.3,1813.2,0.65824292]
[1680560517664,2.988743,1813.3,1813.2,0.65824292]
[1680560517850,1.93019,1813.3,1813.2,0.65824292]
[1680560518217,4.93019,1813.3,1813.2,0.65824292]
[1680560518438,4.93019,1813.3,1812.5,5.896]
[1680560518748,4.93619,1813.3,1812.6,2.76602218]
[1680560518947,0.51599154,1813.2,1812.6,2.76602218]
[1680560519151,4.68829,1813.1,1812.4,0.04409159]
[1680560519317,3.0,1813.0,1812.4,0.03609159]
[1680560519518,1.93068,1812.9,1812.7,0.65919836]
[1680560519814,2.25305254,1812.9,1812.7,0.65919836]
[1680560520434,2.25305254,1812.9,1812.4,0.03609159]
[1680560521448,2.25305254,1812.9,1812.5,0.65976528]
[1680560521819,6.67605254,1812.9,1812.5,0.65976528]
[1680560522022,6.43362743,1812.8,1812.5,0.65976528]
[1680560522216,1.95318254,1812.7,1812.5,0.65976528]
[1680560522432,1.95318254,1812.7,1812.4,0.03609159]
[1680560523830,0.84986254,1812.7,1812.4,0.03609159]
[1680560524032,0.27584,1812.7,1812.4,2.80211377]
[1680560524219,0.8275,1812.7,1812.4,3.08232515]
[1680560524421,0.8275,1812.7,1812.5,0.7868864]
[1680560526440,0.8275,1812.7,1812.4,0.03609159]
[1680560527545,0.84987254,1812.7,1812.5,0.7868864]
[1680560528426,0.84987254,1812.7,1812.4,0.03609159]
[1680560528628,1.34599079,1812.7,1812.4,0.03609159]
[1680560529367,0.27782,1812.8,1812.5,2.76602218]
[1680560529570,0.27583,1812.7,1812.5,2.76602218]
[1680560529871,0.27582,1812.8,1812.5,2.76602218]
[1680560530232,0.82745,1812.8,1812.5,2.76602218]
[1680560530457,0.27582,1812.8,1812.6,0.78659591]
[1680560530656,0.27581,1812.9,1812.6,3.55261809]
[1680560530971,0.2758,1812.9,1812.6,3.55261809]
[1680560531141,0.8274,1812.9,1812.7,2.76602218]
[1680560532630,0.006,1813.1,1812.7,9.60708399]
[1680560532978,0.86456786,1813.7,1812.9,8.66202218]
[1680560532979,0.006,1813.4,1812.9,8.66202218]
[1680560533141,0.27573,1813.4,1812.9,8.66402218]
[1680560533341,1.93008,1813.4,1813.0,0.86640222]
[1680560533541,1.93008,1813.4,1813.0,2.76602218]
[1680560534776,0.006,1813.5,1813.1,2.76602218]
[1680560534977,0.27571,1813.5,1813.1,8.66202218]
[1680560535174,0.27571,1813.5,1813.1,8.66402218]
[1680560535349,0.82712,1813.5,1813.1,9.5304244]
[1680560535733,0.27571,1813.5,1813.1,9.5304244]
[1680560536038,0.27568,1813.7,1813.1,9.8061844]
[1680560536261,0.27568,1813.7,1813.2,6.87661844]
[1680560536569,0.82703,1813.7,1813.3,2.76602218]
[1680560536771,0.27186025,1813.7,1813.3,2.76802218]
[1680560536974,0.27186025,1813.7,1813.3,2.77202218]
[1680560537148,0.27186025,1813.7,1813.4,0.27720222]
[1680560537349,0.82321025,1813.7,1813.4,3.0432244]
[1680560537546,0.82321025,1813.7,1813.5,2.76602218]
[1680560537744,0.27186025,1813.7,1813.5,2.76602218]
[1680560538366,0.82321025,1813.7,1813.5,2.76602218]
[1680560538760,0.27186025,1813.7,1813.5,2.76602218]
[1680560538959,0.82321025,1813.7,1813.5,2.76602218]
[1680560539549,0.69453852,1813.9,1813.5,3.0434244]
[1680560539755,0.27567,1813.8,1813.5,2.76602218]
[1680560539951,1.92964,1813.8,1813.4,0.008]
[1680560540158,1.92964,1813.8,1813.2,0.006]
[1680560540358,2.13672685,1813.8,1813.3,2.76602218]
[1680560540563,2.15909939,1813.8,1813.3,2.76602218]
[1680560540798,1.05644939,1813.8,1813.3,2.76602218]
[1680560540945,0.84936254,1813.8,1813.3,2.76602218]
[1680560541145,0.84936254,1813.8,1813.3,2.77202218]
[1680560541894,0.29804254,1813.8,1813.4,2.76602218]
[1680560542044,0.84936254,1813.8,1813.4,2.76602218]
[1680560542465,0.29804254,1813.8,1813.4,2.76602218]
[1680560542663,0.84936254,1813.8,1813.4,2.76602218]
[1680560543263,0.84936254,1813.8,1813.4,2.77202218]
[1680560543467,1.35868565,1813.8,1813.4,2.76602218]
[1680560544646,4.12470783,1813.8,1813.5,0.78398295]
[1680560544953,1.92984,1813.6,1813.5,0.78398295]
[1680560545456,1.92984,1813.6,1813.0,0.006]
[1680560545655,1.92984,1813.6,1813.1,2.76602218]
[1680560545656,0.192984,1813.5,1813.1,2.76602218]
[1680560545854,0.82717,1813.4,1813.1,2.76602218]
[1680560546500,0.82717,1813.4,1813.2,0.78485365]
[1680560546799,3.82717,1813.4,1813.2,0.78485365]
[1680560546963,7.827697,1813.3,1813.2,0.78485365]
[1680560547162,7.829697,1813.3,1813.2,0.78485365]
[1680560547496,7.829697,1813.3,1812.6,0.006]
[1680560547790,1.93047,1813.1,1812.6,2.77202218]
[1680560548544,0.02237254,1813.0,1812.7,0.78630546]
[1680560548782,4.68861,1812.9,1812.7,0.78630546]
[1680560549486,4.68861,1812.9,1812.5,0.006]
[1680560549662,9.14561,1812.9,1812.4,0.03609159]
[1680560549859,9.14761,1812.9,1812.4,0.03609159]
[1680560550195,1.93082,1812.7,1812.4,0.03609159]
[1680560551272,4.93082,1812.7,1812.4,0.03609159]
[1680560552187,1.93102,1812.5,1812.4,0.03609159]
[1680560552372,0.002,1812.7,1812.4,0.03609159]
[1680560552548,0.5516,1812.9,1812.4,2.80211377]
[1680560552748,0.82746,1812.8,1812.5,0.28021138]
[1680560553445,0.82746,1812.8,1812.6,0.78659591]
[1680560554093,0.2758,1812.9,1812.7,2.76602218]
[1680560554394,0.386717,1813.3,1812.7,3.12128399]
[1680560554687,0.82727,1813.2,1812.7,3.12128399]
[1680560554849,0.82727,1813.2,1812.7,9.02328399]
[1680560555045,0.82727,1813.2,1812.8,0.9023284]
[1680560555284,0.82727,1813.2,1812.9,2.76602218]
[1680560555488,0.82727,1813.2,1812.8,2.77402218]
[1680560555689,0.82727,1813.2,1812.8,2.76602218]
[1680560555856,0.82727,1813.2,1812.7,0.36126181]
[1680560556052,0.82727,1813.2,1812.7,2.76602218]
[1680560556270,0.82727,1813.2,1812.7,2.77202218]
[1680560558353,0.82727,1813.2,1812.7,2.77202218]
[1680560558793,3.43664376,1813.4,1813.1,2.76602218]
[1680560558977,0.006,1813.5,1813.3,2.76602218]
[1680560558978,0.002,1813.5,1813.3,2.76602218]
[1680560559179,0.11600001,1814.2,1813.7,5.894]
[1680560559490,0.11000001,1814.2,1813.8,9.52507218]
[1680560559667,0.11000001,1814.2,1813.8,10.36142218]
[1680560559861,0.11000001,1814.2,1813.8,9.25142218]
[1680560560093,0.11000001,1814.2,1813.8,3.35742218]
[1680560560291,0.11000001,1814.2,1813.8,3.35542218]
[1680560561698,0.02237254,1814.1,1813.7,0.002]
[1680560561873,0.02237254,1814.1,1813.7,2.76602218]
[1680560563175,0.02237254,1814.1,1813.8,2.76602218]
[1680560565664,0.29798254,1814.1,1813.8,8.66202218]
[1680560565908,0.29798254,1814.1,1813.8,9.5304244]
[1680560566360,0.11000001,1814.2,1813.8,9.5304244]
[1680560566565,0.38561001,1814.2,1813.8,9.5304244]
[1680560566766,0.11000001,1814.2,1813.8,9.5304244]
[1680560567566,0.11000001,1814.2,1814.0,5.896]
[1680560567767,0.11000001,1814.2,1814.1,9.25162218]
[1680560568109,0.11000001,1814.2,1814.1,9.25362218]
[1680560569083,0.11000001,1814.2,1814.1,19.25362218]
[1680560570326,0.11000001,1814.2,1814.1,10.002]
[1680560570327,0.38560001,1814.2,1814.1,10.002]
[1680560570876,0.93680001,1814.2,1814.1,10.002]
[1680560571833,0.40797255,1814.2,1814.1,10.002]
[1680560572119,0.38560001,1814.2,1814.1,10.002]
[1680560572430,0.11000001,1814.2,1814.1,19.66422218]
[1680560573218,0.11000001,1814.2,1814.1,13.76822218]
[1680560573528,0.11000001,1814.2,1814.1,12.76802218]
[1680560573728,0.38560001,1814.2,1814.1,12.76802218]
[1680560574530,0.93680001,1814.2,1814.1,13.54985635]
[1680560574913,0.38560001,1814.2,1814.1,13.54985635]
[1680560575083,0.11000001,1814.2,1814.1,13.54985635]
[1680560575484,0.11000001,1814.2,1814.1,10.78383417]
[1680560575736,0.11000001,1814.2,1814.1,13.54985635]
[1680560576425,0.38560001,1814.2,1814.1,13.54985635]
[1680560577237,0.93680001,1814.2,1814.1,13.54985635]
[1680560578890,0.38560001,1814.2,1814.1,13.54985635]
[1680560579088,0.11000001,1814.2,1814.1,20.91184199]
[1680560580943,0.38560001,1814.2,1814.1,20.91184199]
[1680560581288,0.11000001,1814.2,1814.1,20.91184199]
[1680560581483,0.38560001,1814.2,1814.1,20.91184199]
[1680560582037,0.11000001,1814.2,1814.1,13.54985635]
[1680560582247,2.03921001,1814.2,1814.1,10.78383417]
[1680560582794,2.03921001,1814.2,1814.1,10.78188519]
[1680560586389,1.98921001,1814.2,1814.1,10.78188519]
[1680560587995,0.88680001,1814.2,1814.1,10.78188519]
[1680560592374,1.14049082,1814.2,1814.1,10.78188519]
[1680560594422,3.27249082,1814.2,1814.1,10.64596596]
[1680560594628,6.27449082,1814.2,1814.1,10.64596596]
[1680560594849,6.27649082,1814.2,1814.1,10.64596596]
[1680560595730,6.29886336,1814.2,1814.1,10.64596596]
[1680560598981,6.29886336,1814.2,1814.1,10.57488959]
[1680560600181,6.43484306,1814.2,1814.1,10.57488959]
[1680560601379,4.05315225,1814.2,1814.1,10.57488959]
[1680560601558,4.05115225,1814.2,1814.1,10.57488959]
[1680560601857,4.04515225,1814.2,1814.1,10.57488959]
[1680560603040,4.04515225,1814.2,1814.1,10.57688959]
[1680560603041,1.02277971,1814.2,1814.1,10.57688959]
[1680560603275,1.02277971,1814.2,1814.1,10.58088959]
[1680560604773,1.56586549,1814.2,1814.1,10.58088959]
[1680560604942,4.27024406,1814.2,1814.1,10.43762959]
[1680560605277,4.27624406,1814.2,1814.1,10.30323002]
[1680560605689,7.27624406,1814.2,1814.1,10.30323002]
[1680560605888,7.27824406,1814.2,1814.1,10.30323002]
[1680560606688,7.58880589,1814.2,1814.1,10.30323002]
[1680560607189,13.48480589,1814.2,1814.1,10.30323002]
[1680560608573,13.48480589,1814.2,1814.1,9.30323002]
[1680560609694,13.48480589,1814.2,1814.1,8.52139585]
[1680560611167,7.58880589,1814.2,1814.1,8.52139585]
[1680560611369,4.63023384,1814.2,1814.1,8.52139585]
[1680560611544,4.62223384,1814.2,1814.1,8.52739585]
[1680560612445,4.62223384,1814.2,1814.1,9.24725073]
[1680560614389,1.02277971,1814.2,1814.1,9.24725073]
[1680560614594,0.88680001,1814.2,1814.1,9.24725073]
[1680560615991,3.25349082,1814.2,1814.1,9.24725073]
[1680560616147,6.25349082,1814.2,1814.1,9.24725073]
[1680560616352,3.83257241,1814.2,1814.1,9.24725073]
[1680560616599,6.83057241,1814.2,1814.1,9.24725073]
[1680560616749,6.83257241,1814.2,1814.1,9.24725073]
[1680560617858,6.85494495,1814.2,1814.1,9.24725073]
[1680560618746,7.14243122,1814.2,1814.1,9.24725073]
[1680560619392,7.14843122,1814.2,1814.1,9.24125073]
[1680560620792,6.86100168,1814.2,1814.1,9.10274069]
[1680560621697,1.46793833,1814.2,1814.1,9.10674069]
[1680560621881,0.88680001,1814.2,1814.1,9.10474069]
[1680560622082,0.88680001,1814.2,1814.1,14.99874069]
[1680560622398,0.88680001,1814.2,1814.1,9.10274069]
[1680560622575,1.14343284,1814.2,1814.1,9.10274069]
[1680560622913,1.14343284,1814.2,1814.1,9.10874069]
[1680560624381,1.72057116,1814.2,1814.1,9.10874069]
[1680560625199,7.15837324,1814.2,1814.1,9.10874069]
[1680560625371,7.16037324,1814.2,1814.1,9.10874069]
[1680560625709,7.44842173,1814.2,1814.1,9.10874069]
[1680560626409,7.45442173,1814.2,1814.1,9.10274069]
[1680560627717,8.89571854,1814.2,1814.1,8.85274069]
[1680560628095,8.89571854,1814.2,1814.1,8.71840969]
[1680560628297,7.74310219,1814.2,1814.1,8.71840969]
[1680560628531,7.74310219,1814.2,1814.1,8.41725542]
[1680560629992,1.0,1814.1,1813.2,5.896]
[1680560630233,6.21840845,1814.1,1814.0,0.004]
[1680560630435,13.01889845,1814.1,1813.5,0.006]
[1680560630600,1.44368585,1813.9,1813.5,0.006]
[1680560630797,2.50712434,1813.8,1813.5,0.006]
[1680560631235,1.92965,1813.8,1813.5,0.006]
[1680560631466,2.50712434,1813.8,1813.5,0.006]
[1680560631589,3.12031393,1813.8,1813.5,0.006]
[1680560632621,2.54283959,1813.8,1813.5,0.006]
[1680560633516,3.12031393,1813.8,1813.5,0.006]
[1680560633831,3.14268647,1813.8,1813.5,0.006]
[1680560638440,3.14268647,1813.8,1813.6,0.64320834]
[1680560639737,0.31426865,1813.7,1813.6,0.64320834]
[1680560639915,1.71876299,1813.7,1813.6,0.64320834]
[1680560640115,1.71876299,1813.7,1813.6,0.64920834]
[1680560640315,1.40449434,1813.7,1813.6,0.64320834]
[1680560640540,0.002,1813.8,1813.6,10.51523052]
[1680560640863,0.002,1813.8,1813.7,9.87302218]
[1680560640864,0.27566,1813.8,1813.7,9.87302218]
[1680560641022,0.27566,1813.8,1813.7,9.84414523]
[1680560641023,0.82698,1813.8,1813.7,9.84414523]
[1680560641951,0.82698,1813.8,1813.7,0.008]
[1680560642260,0.27566,1813.8,1813.7,0.006]
[1680560643120,0.82698,1813.8,1813.7,0.006]
[1680560644519,0.82698,1813.8,1813.6,0.64920834]
[1680560647030,0.84935254,1813.8,1813.6,0.64920834]
[1680560647578,0.08493525,1813.7,1813.6,0.64920834]
[1680560647776,2.01466525,1813.7,1813.6,0.64920834]
[1680560650276,2.01466525,1813.7,1813.6,0.64320834]
[1680560650743,2.01466525,1813.7,1813.6,0.64920834]
[1680560651071,2.01466525,1813.7,1813.6,0.64073817]
[1680560651577,2.01466525,1813.7,1813.4,5.904]
[1680560652079,4.1471733,1813.8,1813.6,7.113]
[1680560652080,0.002,1813.8,1813.6,7.113]
[1680560652382,0.002,1813.8,1813.7,9.87902218]
[1680560652383,0.27566,1813.8,1813.7,9.87902218]
[1680560652592,0.55132,1813.8,1813.7,8.67002218]
[1680560652878,0.82698,1813.8,1813.7,0.008]
[1680560653089,0.82698,1813.8,1813.5,1.84898091]
[1680560653090,0.27566,1813.8,1813.5,1.85498091]
[1680560653299,0.27566,1813.8,1813.5,4.62100309]
[1680560653663,0.82691,1814.0,1813.7,5.896]
[1680560653870,1.10249,1814.1,1813.9,5.896]
[1680560654184,0.8269,1814.0,1813.9,5.898]
[1680560655153,0.8269,1814.0,1813.9,0.002]
[1680560655372,0.8269,1814.0,1813.8,2.77402218]
[1680560655570,0.8269,1814.0,1813.8,2.76602218]
[1680560655976,1.019839,1814.0,1813.7,0.006]
[1680560656261,0.82699,1813.8,1813.5,6.53498091]
[1680560656577,0.82699,1813.8,1813.6,8.66202218]
[1680560656578,0.27566,1813.8,1813.6,8.66202218]
[1680560656810,0.27566,1813.8,1813.6,8.67002218]
[1680560657259,0.82698,1813.8,1813.6,8.67002218]
[1680560658904,0.82698,1813.8,1813.6,9.60092249]
[1680560659100,0.002,1814.1,1813.8,5.896]
[1680560659333,0.002,1814.1,1813.9,2.76602218]
[1680560659334,0.82685,1814.1,1813.9,2.76602218]
[1680560659595,0.82685,1814.1,1814.0,5.896]
[1680560659760,0.82685,1814.1,1814.0,8.66402218]
[1680560660497,0.82685,1814.1,1814.0,0.008]
[1680560660694,0.82685,1814.1,1813.8,5.904]
[1680560660993,0.82685,1814.1,1814.0,5.896]
[1680560661196,0.82685,1814.1,1814.0,0.008]
[1680560661506,0.82685,1814.1,1813.8,8.67002218]
[1680560661702,0.82685,1814.1,1813.8,0.008]
[1680560661853,1.16245001,1814.2,1813.7,10.98764478]
[1680560661854,1.92952,1813.9,1813.7,10.98764478]
[1680560662056,1.92952,1813.9,1813.7,6.49444478]
[1680560663299,1.92952,1813.9,1813.7,0.59844478]
[1680560663498,1.92952,1813.9,1813.7,0.59044478]
[1680560664565,0.02237254,1813.8,1813.4,15.7888]
[1680560664775,0.02237254,1813.8,1813.4,18.55482218]
[1680560664776,0.82704,1813.7,1813.4,18.55482218]
[1680560665368,0.82704,1813.7,1813.4,8.67002218]
[1680560665557,0.82704,1813.7,1813.5,0.54605069]
[1680560667497,0.27568,1813.7,1813.5,0.54605069]
[1680560667697,0.02237254,1813.8,1813.5,9.20807287]
[1680560667850,0.82702,1813.7,1813.5,9.21607287]
[1680560670294,0.91195925,1813.7,1813.5,0.55405069]
[1680560670492,0.91195925,1813.7,1813.5,0.54605069]
[1680560670865,0.82702,1813.7,1813.5,0.54605069]
[1680560671060,0.27567,1813.7,1813.6,5.896]
[1680560671285,0.82702,1813.7,1813.6,5.898]
[1680560671926,0.82702,1813.7,1813.6,0.002]
[1680560672072,0.909722,1813.7,1813.5,0.54605069]
[1680560672477,0.909722,1813.7,1813.4,5.904]
[1680560672700,0.909722,1813.7,1813.4,8.67002218]
[1680560672964,0.909722,1813.7,1813.4,5.904]
[1680560673178,0.909722,1813.7,1813.4,0.008]
[1680560673414,0.0909722,1813.6,1813.3,5.904]
[1680560673620,0.2757,1813.5,1813.3,8.67002218]
[1680560676712,0.02237254,1813.4,1813.3,0.008]
[1680560676915,5.92288092,1813.4,1813.1,0.008]
[1680560677127,0.59228809,1813.3,1813.0,0.1]
[1680560677413,1.93028,1813.2,1813.0,0.1]
[1680560678864,3.14628,1813.2,1813.0,0.1]
[1680560679686,3.14628,1813.2,1813.1,0.56619608]
[1680560679887,3.52033681,1813.2,1813.1,0.56619608]
[1680560681887,3.53889772,1813.2,1813.1,0.56619608]
[1680560684076,13.4239199,1813.2,1813.1,0.56619608]
[1680560684277,16.4199199,1813.2,1813.0,0.03340131]
[1680560684507,9.21002417,1813.1,1813.0,0.03340131]
[1680560684694,12.21202417,1813.1,1813.0,0.03340131]
[1680560685504,12.21202417,1813.1,1813.0,1.31e-06]
[1680560686434,13.41802417,1813.1,1813.0,1.31e-06]
[1680560686736,19.31402417,1813.1,1813.0,1.31e-06]
[1680560687162,27.99002417,1813.1,1812.6,0.1]
[1680560687467,7.11012,1812.7,1812.6,0.1]
[1680560687598,5.90412,1812.7,1812.6,0.1]
[1680560687800,8.90412,1812.7,1812.6,0.1]
[1680560688200,8.85412,1812.7,1812.6,0.1]
[1680560688406,9.861232,1812.7,1812.6,0.1]
[1680560689119,12.64581509,1812.7,1812.6,0.1]
[1680560689360,12.65181509,1812.7,1812.6,0.1]
[1680560689860,12.64581509,1812.7,1812.6,0.1]
[1680560690965,13.2094359,1812.7,1812.6,0.1]
[1680560691177,20.3184359,1812.7,1812.6,0.1]
[1680560691308,20.5484359,1812.7,1812.6,0.1]
[1680560691512,20.5484359,1812.7,1812.4,0.03609159]
[1680560691714,8.317,1812.5,1812.4,0.03609159]
[1680560691968,13.01604218,1812.5,1812.4,0.03609159]
[1680560692275,16.01604218,1812.5,1812.4,0.03609159]
[1680560692571,1.93302,1812.5,1812.4,0.03609159]
[1680560692711,1.93102,1812.5,1812.4,0.03609159]
[1680560693106,3.14802,1812.5,1812.4,0.03609159]
[1680560693341,3.641122,1812.5,1812.4,0.03609159]
[1680560693520,3.641122,1812.5,1812.4,0.61811532]
[1680560693747,6.641122,1812.5,1812.4,0.61811532]
[1680560693944,12.539122,1812.5,1812.4,0.61811532]
[1680560694144,6.873122,1812.5,1812.4,0.61811532]
[1680560694351,6.643122,1812.5,1812.4,0.61811532]
[1680560694572,6.643122,1812.5,1812.4,0.03609159]
[1680560694955,6.64035123,1812.5,1812.4,0.03609159]
[1680560695519,6.65891214,1812.5,1812.4,0.03609159]
[1680560696170,9.42493432,1812.5,1812.4,0.03609159]
[1680560696462,6.79374272,1812.5,1812.4,0.03609159]
[1680560697347,1.93024923,1812.5,1812.4,0.03609159]
[1680560697518,1.92824923,1812.5,1812.4,0.03609159]
[1680560697725,1.93102,1812.5,1812.4,0.03609159]
[1680560698374,4.69704218,1812.5,1812.4,0.03609159]
[1680560698579,5.91404218,1812.5,1812.4,0.61979695]
[1680560698867,9.52282335,1812.5,1812.4,0.61979695]
[1680560699624,9.52282335,1812.5,1812.4,0.03609159]
[1680560706425,15.41882335,1812.5,1812.4,0.03609159]
[1680560706734,15.64882335,1812.5,1812.4,0.03609159]
[1680560707184,16.86582335,1812.5,1812.4,0.03609159]
[1680560707379,16.86582335,1812.5,1812.2,1.038141]
[1680560707380,5.896,1812.3,1812.2,1.038141]
[1680560707536,23.31903218,1812.3,1812.2,1.038141]
[1680560709261,23.08903218,1812.3,1812.2,1.038141]
[1680560710182,23.31903218,1812.3,1812.2,1.038141]
[1680560712467,24.52503218,1812.3,1812.2,1.038141]
[1680560712785,27.24804972,1812.3,1812.2,1.038141]
[1680560714153,27.01804972,1812.3,1812.2,1.038141]
[1680560714880,27.24804972,1812.3,1812.2,1.038141]
[1680560715393,26.03104972,1812.3,1812.2,1.038141]
[1680560716798,8.62117754,1812.3,1812.2,1.038141]
[1680560717001,5.89816,1812.3,1812.2,1.038141]
[1680560717994,1.93324,1812.3,1812.2,1.038141]
[1680560718144,1.93124,1812.3,1812.2,1.038141]
[1680560718553,1.93124,1812.3,1812.2,1.62185786]
[1680560719679,4.93124,1812.3,1812.2,1.62185786]
[1680560720265,6.252215,1812.3,1812.2,1.62185786]
[1680560720579,6.254215,1812.3,1812.2,1.62185786]
[1680560722502,6.254215,1812.3,1812.2,1.038141]
[1680560724448,13.367215,1812.3,1812.2,1.038141]
[1680560724652,16.13323718,1812.3,1812.2,1.62185786]
[1680560725654,16.13323718,1812.3,1812.2,1.038141]
[1680560728898,10.23723718,1812.3,1812.2,1.038141]
[1680560729210,4.93324,1812.3,1812.2,1.035493]
[1680560729375,4.93124,1812.3,1812.2,1.035493]
[1680560729574,4.93124,1812.3,1812.2,1.61920986]
[1680560731565,4.93124,1812.3,1812.2,1.035493]
[1680560732588,0.82767,1812.3,1812.2,1.7178973]
[1680560732784,1.65521,1812.5,1812.2,1.89968703]
[1680560732985,0.27588,1812.4,1812.2,1.89968703]
[1680560733594,0.82763,1812.4,1812.2,1.89968703]
[1680560734423,0.82763,1812.4,1812.2,1.90568703]
[1680560734616,0.82763,1812.4,1812.2,1.7238973]
[1680560734824,0.82763,1812.4,1812.2,1.7178973]
[1680560741038,0.27588,1812.4,1812.2,1.7178973]
[1680560741232,0.82763,1812.4,1812.2,1.7178973]
[1680560742755,3.68990859,1812.6,1812.2,1.7178973]
[1680560742928,0.27587,1812.5,1812.3,0.17178973]
[1680560743128,0.82759,1812.5,1812.2,1.7238973]
[1680560743342,0.13620859,1812.6,1812.3,9.87902218]
[1680560743558,0.13620859,1812.6,1812.5,1.217]
[1680560743742,30.65743,1812.9,1812.5,7.2347]
[1680560743743,0.2778,1812.9,1812.5,7.2347]
[1680560743941,1.77300216,1813.1,1812.5,10.28457218]
[1680560744142,0.57747434,1813.0,1812.5,0.008]
[1680560744429,0.82741,1812.9,1812.4,1.223]
[1680560744656,0.2758,1812.9,1812.6,1.88433921]
[1680560744856,0.2758,1812.9,1812.7,2.76602218]
[1680560745059,0.8274,1812.9,1812.7,2.76602218]
[1680560745266,0.8274,1812.9,1812.6,1.89233921]
[1680560745584,0.8274,1812.9,1812.6,1.88433921]
[1680560745939,0.84596091,1812.9,1812.6,1.88433921]
[1680560746140,0.84596091,1812.9,1812.6,2.07337313]
[1680560747313,0.84596091,1812.9,1812.6,1.97537313]
[1680560747464,0.84596091,1812.9,1812.6,1.97337313]
[1680560750177,0.84596091,1812.9,1812.6,0.57833921]
[1680560750568,0.84596091,1812.9,1812.4,1.217]
[1680560750764,0.85196091,1812.9,1812.4,1.217]
[1680560751699,0.85196091,1812.9,1812.5,0.67058121]
[1680560751901,4.19545743,1812.9,1812.5,0.67058121]
[1680560752107,3.41954574,1812.8,1812.5,0.67058121]
[1680560752304,1.93081,1812.7,1812.5,0.67058121]
[1680560752506,1.93081,1812.7,1812.3,9.7001]
[1680560752507,1.93681,1812.7,1812.3,9.7001]
[1680560752680,1.93081,1812.7,1812.3,9.7001]
[1680560753021,2.46664557,1812.7,1812.3,9.7001]
[1680560753190,2.47264557,1812.7,1812.3,0.002]
[1680560753392,6.44466775,1812.7,1812.2,1.035493]
[1680560753703,1.93105,1812.5,1812.2,1.035493]
[1680560753877,1.93105,1812.5,1811.7,0.466]
[1680560753878,4.69016,1812.3,1811.7,0.466]
[1680560754077,4.69016,1812.3,1811.6,0.1]
[1680560754078,0.27594,1812.0,1811.6,0.1]
[1680560754322,4.840284,1812.0,1811.6,0.1]
[1680560754529,1.93176,1811.8,1811.6,0.1]
[1680560754689,1.93776,1811.8,1811.6,0.1]
[1680560756329,1.95632091,1811.8,1811.6,0.1]
[1680560756716,3.17232091,1811.8,1811.6,0.1]